[Event "Early-Titled-Tuesday-Blitz-September-05-2023"]
[Site "Chess.com"]
[Date "2023.09.05"]
[Round "1"]
[White "jeetjain"]
[Black "stepanosinovsky"]
[Result "1-0"]
[WhiteElo "2615"]
[BlackElo "2290"]
[TimeControl "180+1"]
[EndTime "8:06:05 PDT"]
[Termination "jeetjain won on time"]

1. d4 {[%clk 0:02:56.8]} 1... Nf6 {[%clk 0:02:58.6]} 2. Nc3 {[%clk 0:02:56.4]}
2... g6 {[%clk 0:02:53.8]} 3. e4 {[%clk 0:02:51.1]} 3... d6 {[%clk 0:02:53.2]}
4. Nf3 {[%clk 0:02:43.9]} 4... Bg4 {[%clk 0:02:43.6]} 5. h3 {[%clk 0:02:43.8]}
5... Bxf3 {[%clk 0:02:43.1]} 6. Qxf3 {[%clk 0:02:44.7]} 6... Bg7 {[%clk
0:02:36.5]} 7. Bg5 {[%clk 0:02:39.1]} 7... Nbd7 {[%clk 0:02:35]} 8. Bc4 {[%clk
0:02:33.3]} 8... h6 {[%clk 0:02:24.8]} 9. Bh4 {[%clk 0:02:32.5]} 9... c6 {[%clk
0:02:22.9]} 10. O-O {[%clk 0:02:25]} 10... O-O {[%clk 0:02:08.6]} 11. Rfe1
{[%clk 0:02:23]} 11... Qb6 {[%clk 0:01:20.7]} 12. e5 {[%clk 0:02:22.6]} 12...
Qxd4 {[%clk 0:00:49.6]} 13. exf6 {[%clk 0:02:22.4]} 13... Nxf6 {[%clk
0:00:40.7]} 14. Bxf6 {[%clk 0:02:18.9]} 14... exf6 {[%clk 0:00:35.8]} 15. Bb3
{[%clk 0:02:16]} 15... d5 {[%clk 0:00:35.4]} 16. Re7 {[%clk 0:02:09.5]} 16... b5
{[%clk 0:00:31.2]} 17. Rd1 {[%clk 0:01:50.7]} 17... Qc5 {[%clk 0:00:25.1]} 18.
Rde1 {[%clk 0:01:50.5]} 18... f5 {[%clk 0:00:17.6]} 19. Nd1 {[%clk 0:01:44.9]}
19... Bf6 {[%clk 0:00:13.1]} 20. R7e2 {[%clk 0:01:43.6]} 20... Qb4 {[%clk
0:00:11.6]} 21. c3 {[%clk 0:01:43.3]} 21... Qd6 {[%clk 0:00:11]} 22. Bc2 {[%clk
0:01:43.2]} 22... a5 {[%clk 0:00:10.8]} 23. Ne3 {[%clk 0:01:38.6]} 23... h5
{[%clk 0:00:10.4]} 24. Nxf5 {[%clk 0:01:31.8]} 24... gxf5 {[%clk 0:00:06.4]} 25.
Qxf5 {[%clk 0:01:32.7]} 25... Rfd8 {[%clk 0:00:06.1]} 26. Qh7+ {[%clk
0:01:28.8]} 26... Kf8 {[%clk 0:00:06.1]} 27. Qh6+ {[%clk 0:01:27.8]} 27... Bg7
{[%clk 0:00:03.9]} 28. Re8+ {[%clk 0:01:26.8]} 28... Rxe8 {[%clk 0:00:03]} 29.
Qxd6+ {[%clk 0:01:27]} 29... Kg8 {[%clk 0:00:02.4]} 30. Rxe8+ {[%clk 0:01:26]}
30... Rxe8 {[%clk 0:00:03.3]} 31. Kf1 {[%clk 0:01:26.4]} 1-0

[Event "Early-Titled-Tuesday-Blitz-September-05-2023"]
[Site "Chess.com"]
[Date "2023.09.05"]
[Round "1"]
[White "Rurep26"]
[Black "HajiyevKanan"]
[Result "1/2-1/2"]
[WhiteElo "2808"]
[BlackElo "2459"]
[TimeControl "180+1"]
[EndTime "8:06:06 PDT"]
[Termination "Game drawn by repetition"]

1. d4 {[%clk 0:02:59.8]} 1... Nf6 {[%clk 0:02:56.3]} 2. Bf4 {[%clk 0:02:59.3]}
2... e6 {[%clk 0:02:57.2]} 3. e3 {[%clk 0:02:59.5]} 3... Be7 {[%clk 0:02:56.1]}
4. Nd2 {[%clk 0:02:58.9]} 4... O-O {[%clk 0:02:56.7]} 5. Bd3 {[%clk 0:02:58.3]}
5... b6 {[%clk 0:02:56.6]} 6. Ngf3 {[%clk 0:02:57.9]} 6... Ba6 {[%clk
0:02:55.4]} 7. Bxa6 {[%clk 0:02:55.1]} 7... Nxa6 {[%clk 0:02:56.3]} 8. O-O
{[%clk 0:02:55.6]} 8... c5 {[%clk 0:02:54.8]} 9. c4 {[%clk 0:02:52.3]} 9... d5
{[%clk 0:02:48.8]} 10. Qa4 {[%clk 0:02:49.2]} 10... Nc7 {[%clk 0:02:30.4]} 11.
Ne5 {[%clk 0:02:42.6]} 11... Qe8 {[%clk 0:02:22.5]} 12. Qc6 {[%clk 0:02:38.7]}
12... Rc8 {[%clk 0:02:02.7]} 13. Rfc1 {[%clk 0:02:27.1]} 13... Nh5 {[%clk
0:01:56.7]} 14. Bg3 {[%clk 0:02:21.5]} 14... Nxg3 {[%clk 0:01:56.5]} 15. hxg3
{[%clk 0:02:22.4]} 15... f6 {[%clk 0:01:36]} 16. Qxe8 {[%clk 0:02:19.8]} 16...
Rfxe8 {[%clk 0:01:31.9]} 17. Nc6 {[%clk 0:02:19.5]} 17... a6 {[%clk 0:01:26.1]}
18. Nb3 {[%clk 0:02:17.1]} 18... cxd4 {[%clk 0:01:14.9]} 19. exd4 {[%clk
0:02:17]} 19... dxc4 {[%clk 0:01:06.9]} 20. Rxc4 {[%clk 0:02:17.9]} 20... Nd5
{[%clk 0:01:01]} 21. Rac1 {[%clk 0:02:16.8]} 21... Rc7 {[%clk 0:00:51.4]} 22.
Nd2 {[%clk 0:02:04.4]} 22... Kf8 {[%clk 0:00:44.7]} 23. Nxe7 {[%clk 0:01:51]}
23... Rexe7 {[%clk 0:00:43.1]} 24. Ne4 {[%clk 0:01:44.3]} 24... Rxc4 {[%clk
0:00:39.1]} 25. Rxc4 {[%clk 0:01:43.8]} 25... Rc7 {[%clk 0:00:36]} 26. Rxc7
{[%clk 0:01:41.2]} 26... Nxc7 {[%clk 0:00:36.9]} 27. Nc3 {[%clk 0:01:42.1]}
27... Ke7 {[%clk 0:00:36.1]} 28. Kf1 {[%clk 0:01:41.6]} 28... Kd6 {[%clk
0:00:36]} 29. Ke2 {[%clk 0:01:42.1]} 29... Nd5 {[%clk 0:00:36.3]} 30. Ne4+
{[%clk 0:01:41.7]} 30... Kc6 {[%clk 0:00:36.2]} 31. a3 {[%clk 0:01:41.3]} 31...
Nc7 {[%clk 0:00:33.8]} 32. Kd3 {[%clk 0:01:41]} 32... Kd5 {[%clk 0:00:33.4]} 33.
Nc3+ {[%clk 0:01:41.3]} 33... Kc6 {[%clk 0:00:34]} 34. Ne2 {[%clk 0:01:36.9]}
34... Nd5 {[%clk 0:00:32.6]} 35. Nc1 {[%clk 0:01:30.6]} 35... Kb5 {[%clk
0:00:31.8]} 36. Nb3 {[%clk 0:01:29.4]} 36... Ne7 {[%clk 0:00:23.1]} 37. Nd2
{[%clk 0:01:26]} 37... Nd5 {[%clk 0:00:21.3]} 38. Nc4 {[%clk 0:01:25.6]} 38...
Kc6 {[%clk 0:00:20.6]} 39. Nd2 {[%clk 0:01:24.8]} 39... Kb5 {[%clk 0:00:20.9]}
40. Ne4 {[%clk 0:01:25]} 40... Kc6 {[%clk 0:00:20.9]} 41. Nd2 {[%clk 0:01:21.8]}
41... Kb5 {[%clk 0:00:21.3]} 1/2-1/2

[Event "Early-Titled-Tuesday-Blitz-September-05-2023"]
[Site "Chess.com"]
[Date "2023.09.05"]
[Round "1"]
[White "biostatistician"]
[Black "inagreV"]
[Result "1-0"]
[WhiteElo "2600"]
[BlackElo "2253"]
[TimeControl "180+1"]
[EndTime "8:06:07 PDT"]
[Termination "biostatistician won by resignation"]

1. d4 {[%clk 0:03:00]} 1... Nf6 {[%clk 0:02:59.1]} 2. Nf3 {[%clk 0:03:00.9]}
2... d5 {[%clk 0:02:58.6]} 3. c4 {[%clk 0:03:01.2]} 3... e6 {[%clk 0:02:58.5]}
4. Bg5 {[%clk 0:03:01.4]} 4... Nbd7 {[%clk 0:02:54.3]} 5. e3 {[%clk 0:03:01.5]}
5... c6 {[%clk 0:02:53.7]} 6. Nc3 {[%clk 0:03:01.7]} 6... Qa5 {[%clk 0:02:54.1]}
7. Nd2 {[%clk 0:03:00.2]} 7... dxc4 {[%clk 0:02:53.1]} 8. Bxf6 {[%clk
0:03:00.3]} 8... Nxf6 {[%clk 0:02:54]} 9. Nxc4 {[%clk 0:03:00.8]} 9... Qc7
{[%clk 0:02:54.6]} 10. Bd3 {[%clk 0:03:01.2]} 10... Be7 {[%clk 0:02:53.5]} 11.
O-O {[%clk 0:03:01.2]} 11... O-O {[%clk 0:02:53.8]} 12. Qc2 {[%clk 0:03:01.3]}
12... Rd8 {[%clk 0:02:52.8]} 13. Ne4 {[%clk 0:03:01]} 13... g6 {[%clk
0:02:17.4]} 14. Rac1 {[%clk 0:03:00.2]} 14... Bd7 {[%clk 0:02:16.1]} 15. Ne5
{[%clk 0:02:59.5]} 15... Be8 {[%clk 0:02:15.3]} 16. a3 {[%clk 0:02:54.6]} 16...
Nxe4 {[%clk 0:02:10]} 17. Bxe4 {[%clk 0:02:54.5]} 17... Bd6 {[%clk 0:02:00.3]}
18. f4 {[%clk 0:02:51.4]} 18... Rac8 {[%clk 0:01:50.7]} 19. b4 {[%clk 0:02:50]}
19... a6 {[%clk 0:01:49.2]} 20. Nd3 {[%clk 0:02:42.2]} 20... Bf8 {[%clk
0:01:44.7]} 21. Bf3 {[%clk 0:02:38.2]} 21... Qb6 {[%clk 0:01:36.9]} 22. Nc5
{[%clk 0:02:33.9]} 22... Bg7 {[%clk 0:01:30]} 23. Rfd1 {[%clk 0:02:32.7]} 23...
Qc7 {[%clk 0:01:21.5]} 24. Qc4 {[%clk 0:02:31.5]} 24... a5 {[%clk 0:01:19.4]}
25. bxa5 {[%clk 0:02:18.1]} 25... Ra8 {[%clk 0:01:12.7]} 26. a6 {[%clk
0:01:58.4]} 26... b6 {[%clk 0:01:07.7]} 27. Nb7 {[%clk 0:01:57.9]} 27... Rdc8
{[%clk 0:01:06]} 28. a4 {[%clk 0:01:53.7]} 28... Qe7 {[%clk 0:01:00.4]} 29. Qd3
{[%clk 0:01:38.1]} 29... Ra7 {[%clk 0:00:53.9]} 30. Rb1 {[%clk 0:01:35.1]} 30...
Qc7 {[%clk 0:00:50.4]} 31. Be2 {[%clk 0:01:22.2]} 31... c5 {[%clk 0:00:39.1]}
32. dxc5 {[%clk 0:01:16]} 32... bxc5 {[%clk 0:00:40]} 33. Nd6 {[%clk 0:01:15.6]}
33... Bxa4 {[%clk 0:00:36.6]} 34. Nxc8 {[%clk 0:01:11.5]} 34... Bxd1 {[%clk
0:00:35.9]} 35. Nxa7 {[%clk 0:01:07.1]} 35... Bxe2 {[%clk 0:00:35.3]} 36. Qxe2
{[%clk 0:01:00.6]} 36... Qxa7 {[%clk 0:00:35.4]} 37. Qb5 {[%clk 0:00:59.7]}
37... Bf8 {[%clk 0:00:33.3]} 38. Qb7 {[%clk 0:00:54.2]} 1-0

[Event "Early-Titled-Tuesday-Blitz-September-05-2023"]
[Site "Chess.com"]
[Date "2023.09.05"]
[Round "1"]
[White "Chemim21"]
[Black "Orest_Vovk"]
[Result "0-1"]
[WhiteElo "2279"]
[BlackElo "2610"]
[TimeControl "180+1"]
[EndTime "8:06:08 PDT"]
[Termination "Orest_Vovk won on time"]

1. d4 {[%clk 0:02:57.1]} 1... g6 {[%clk 0:02:57.7]} 2. e4 {[%clk 0:02:56.3]}
2... Nf6 {[%clk 0:02:54.1]} 3. Nc3 {[%clk 0:02:54.9]} 3... d5 {[%clk 0:02:52.3]}
4. e5 {[%clk 0:02:52.4]} 4... Ne4 {[%clk 0:02:51.8]} 5. Bd3 {[%clk 0:02:45.2]}
5... Nxc3 {[%clk 0:02:50.9]} 6. bxc3 {[%clk 0:02:44.9]} 6... c5 {[%clk
0:02:51.6]} 7. f4 {[%clk 0:02:39.2]} 7... Nc6 {[%clk 0:02:48.7]} 8. Nf3 {[%clk
0:02:36.6]} 8... Qa5 {[%clk 0:02:46.6]} 9. Bd2 {[%clk 0:02:32.8]} 9... c4 {[%clk
0:02:34.9]} 10. Be2 {[%clk 0:02:28.8]} 10... Bf5 {[%clk 0:02:34.9]} 11. O-O
{[%clk 0:02:18.1]} 11... Qa4 {[%clk 0:02:34.7]} 12. Qb1 {[%clk 0:02:01]} 12...
O-O-O {[%clk 0:02:23.5]} 13. Bd1 {[%clk 0:01:55]} 13... h6 {[%clk 0:02:18.7]}
14. Qb2 {[%clk 0:01:50.9]} 14... e6 {[%clk 0:02:16.9]} 15. Rb1 {[%clk
0:01:50.7]} 15... Rd7 {[%clk 0:02:13.5]} 16. Nh4 {[%clk 0:01:36.3]} 16... Be4
{[%clk 0:02:09.4]} 17. Bf3 {[%clk 0:01:16.4]} 17... Bxc2 {[%clk 0:01:58]} 18.
Rbc1 {[%clk 0:01:15.4]} 18... Bd3 {[%clk 0:01:58]} 19. Rfe1 {[%clk 0:01:15.1]}
19... Ba3 {[%clk 0:01:57]} 20. Qa1 {[%clk 0:01:11]} 20... Bxc1 {[%clk
0:01:49.6]} 21. Qxc1 {[%clk 0:01:11]} 21... Qxa2 {[%clk 0:01:47.8]} 22. Be2
{[%clk 0:01:03]} 22... Na5 {[%clk 0:01:33.2]} 23. Bxd3 {[%clk 0:00:58.3]} 23...
Nb3 {[%clk 0:01:29.6]} 24. Qc2 {[%clk 0:00:12.8]} 24... Qxc2 {[%clk 0:01:28.5]}
25. Bxc2 {[%clk 0:00:13.2]} 25... Nxd2 {[%clk 0:01:28.5]} 26. Ra1 {[%clk
0:00:12]} 26... Kb8 {[%clk 0:01:25.7]} 27. g4 {[%clk 0:00:12.2]} 27... g5 {[%clk
0:01:23]} 28. fxg5 {[%clk 0:00:11.5]} 28... hxg5 {[%clk 0:01:23.2]} 29. Ng2
{[%clk 0:00:12.2]} 29... Nf3+ {[%clk 0:01:23.2]} 30. Kf2 {[%clk 0:00:12.3]}
30... Nxh2 {[%clk 0:01:22.9]} 31. Kg3 {[%clk 0:00:09.7]} 31... Rh4 {[%clk
0:01:22.7]} 32. Bd1 {[%clk 0:00:07.6]} 32... Nf1+ {[%clk 0:01:20.8]} 33. Kf2
{[%clk 0:00:02.8]} 33... Nd2 {[%clk 0:01:20.8]} 34. Ke3 {[%clk 0:00:02.6]} 34...
Ne4 {[%clk 0:01:20.7]} 35. Bf3 {[%clk 0:00:03]} 35... Nxc3 {[%clk 0:01:20.4]}
0-1

[Event "Early-Titled-Tuesday-Blitz-September-05-2023"]
[Site "Chess.com"]
[Date "2023.09.05"]
[Round "1"]
[White "francyIM"]
[Black "AquivaRubinstein"]
[Result "1-0"]
[WhiteElo "2844"]
[BlackElo "2468"]
[TimeControl "180+1"]
[EndTime "8:06:09 PDT"]
[Termination "francyIM won on time"]

1. Nf3 {[%clk 0:03:00]} 1... Nf6 {[%clk 0:02:57]} 2. b3 {[%clk 0:02:57]} 2... c5
{[%clk 0:02:53.4]} 3. Bb2 {[%clk 0:02:57.3]} 3... b6 {[%clk 0:02:53.1]} 4. d3
{[%clk 0:02:53.6]} 4... Bb7 {[%clk 0:02:52.9]} 5. Nbd2 {[%clk 0:02:54.3]} 5...
e6 {[%clk 0:02:51.4]} 6. g3 {[%clk 0:02:54.4]} 6... Be7 {[%clk 0:02:51]} 7. Bg2
{[%clk 0:02:55]} 7... O-O {[%clk 0:02:51.2]} 8. O-O {[%clk 0:02:55.6]} 8... d6
{[%clk 0:02:51.6]} 9. e3 {[%clk 0:02:55.6]} 9... Nbd7 {[%clk 0:02:51.7]} 10. Qe2
{[%clk 0:02:56.3]} 10... e5 {[%clk 0:02:48.8]} 11. c4 {[%clk 0:02:52]} 11... a5
{[%clk 0:02:45.9]} 12. a3 {[%clk 0:02:50.7]} 12... a4 {[%clk 0:02:36.2]} 13. b4
{[%clk 0:02:50.2]} 13... cxb4 {[%clk 0:02:24.5]} 14. axb4 {[%clk 0:02:50.6]}
14... d5 {[%clk 0:02:16.3]} 15. Nxe5 {[%clk 0:02:49.9]} 15... Nxe5 {[%clk
0:02:13.1]} 16. Bxe5 {[%clk 0:02:49.6]} 16... Bxb4 {[%clk 0:02:13.7]} 17. Rfb1
{[%clk 0:02:48.7]} 17... Be7 {[%clk 0:02:03.7]} 18. Bd4 {[%clk 0:02:30.3]} 18...
Ra6 {[%clk 0:01:52.5]} 19. cxd5 {[%clk 0:02:28.7]} 19... Bxd5 {[%clk 0:01:39.4]}
20. Bxd5 {[%clk 0:02:27.1]} 20... Nxd5 {[%clk 0:01:31.9]} 21. Nc4 {[%clk
0:02:18.8]} 21... Bf6 {[%clk 0:01:21.7]} 22. Qb2 {[%clk 0:02:16.6]} 22... b5
{[%clk 0:00:46]} 23. Qxb5 {[%clk 0:02:09.7]} 23... Bxd4 {[%clk 0:00:44.1]} 24.
Qxa6 {[%clk 0:02:09.5]} 24... Bxa1 {[%clk 0:00:44.1]} 25. Rxa1 {[%clk
0:02:09.9]} 25... Nc3 {[%clk 0:00:30.9]} 26. Nb2 {[%clk 0:02:06.8]} 26... Qf6
{[%clk 0:00:24.6]} 27. Qxf6 {[%clk 0:02:00.9]} 27... gxf6 {[%clk 0:00:25.5]} 28.
Ra3 {[%clk 0:01:59.3]} 28... Rb8 {[%clk 0:00:18.2]} 29. Nxa4 {[%clk 0:01:56.3]}
29... Nb1 {[%clk 0:00:05.1]} 30. Ra2 {[%clk 0:01:55]} 30... Rb4 {[%clk 0:00:03]}
31. Rb2 {[%clk 0:01:55.3]} 31... Rxa4 {[%clk 0:00:02.3]} 32. Rb8+ {[%clk
0:01:55.6]} 32... Kg7 {[%clk 0:00:02.3]} 33. Rxb1 {[%clk 0:01:56.5]} 33... h5
{[%clk 0:00:02.9]} 34. h3 {[%clk 0:01:53.2]} 34... Kg6 {[%clk 0:00:03.4]} 35.
Kg2 {[%clk 0:01:53.5]} 35... Ra2 {[%clk 0:00:03.9]} 36. Rb5 {[%clk 0:01:53.4]}
36... Rc2 {[%clk 0:00:04.2]} 37. d4 {[%clk 0:01:53.8]} 37... Ra2 {[%clk
0:00:04.4]} 38. Kf3 {[%clk 0:01:54.1]} 38... Rd2 {[%clk 0:00:04.7]} 39. Rc5
{[%clk 0:01:53.1]} 39... Ra2 {[%clk 0:00:04.8]} 40. e4 {[%clk 0:01:53.5]} 40...
Rb2 {[%clk 0:00:04.8]} 41. Ke3 {[%clk 0:01:53.6]} 41... Ra2 {[%clk 0:00:05.1]}
42. h4 {[%clk 0:01:54]} 42... Rb2 {[%clk 0:00:05.3]} 43. f3 {[%clk 0:01:54.4]}
43... Ra2 {[%clk 0:00:05.7]} 44. Rc3 {[%clk 0:01:53.8]} 44... Rb2 {[%clk
0:00:06]} 45. d5 {[%clk 0:01:54.2]} 45... Ra2 {[%clk 0:00:06]} 46. d6 {[%clk
0:01:54.6]} 46... Ra8 {[%clk 0:00:02.9]} 47. d7 {[%clk 0:01:54.5]} 47... Rd8
{[%clk 0:00:02.5]} 48. Rd3 {[%clk 0:01:55.1]} 48... f5 {[%clk 0:00:02.9]} 49.
Rd6+ {[%clk 0:01:55.3]} 49... Kg7 {[%clk 0:00:03]} 50. exf5 {[%clk 0:01:54.4]}
50... Kf8 {[%clk 0:00:03.6]} 51. f6 {[%clk 0:01:54.6]} 1-0

[Event "Early-Titled-Tuesday-Blitz-September-05-2023"]
[Site "Chess.com"]
[Date "2023.09.05"]
[Round "1"]
[White "Durarbayli"]
[Black "Cambek64"]
[Result "1-0"]
[WhiteElo "2898"]
[BlackElo "2487"]
[TimeControl "180+1"]
[EndTime "8:06:10 PDT"]
[Termination "Durarbayli won by checkmate"]

1. e4 {[%clk 0:03:00.9]} 1... e6 {[%clk 0:02:57.1]} 2. d4 {[%clk 0:03:00.5]}
2... d5 {[%clk 0:02:57.8]} 3. e5 {[%clk 0:03:01]} 3... c5 {[%clk 0:02:57.8]} 4.
c3 {[%clk 0:03:01.7]} 4... Nc6 {[%clk 0:02:58]} 5. Nf3 {[%clk 0:03:02.1]} 5...
Bd7 {[%clk 0:02:58.7]} 6. Be2 {[%clk 0:03:01.9]} 6... Rc8 {[%clk 0:02:58.9]} 7.
O-O {[%clk 0:03:01.6]} 7... Nge7 {[%clk 0:02:57.3]} 8. Na3 {[%clk 0:02:58.8]}
8... cxd4 {[%clk 0:02:57.5]} 9. cxd4 {[%clk 0:02:56.2]} 9... Nf5 {[%clk
0:02:58.1]} 10. Nc2 {[%clk 0:02:56.2]} 10... Qb6 {[%clk 0:02:52.9]} 11. Kh1
{[%clk 0:02:36.1]} 11... h5 {[%clk 0:02:50.7]} 12. Bd3 {[%clk 0:02:34.7]} 12...
g6 {[%clk 0:02:45.2]} 13. Bg5 {[%clk 0:02:32.2]} 13... Be7 {[%clk 0:02:40]} 14.
Bxe7 {[%clk 0:02:29.6]} 14... Ncxe7 {[%clk 0:02:38.7]} 15. Qd2 {[%clk
0:02:29.2]} 15... Bb5 {[%clk 0:02:36.6]} 16. Bxb5+ {[%clk 0:02:08.8]} 16... Qxb5
{[%clk 0:02:36.3]} 17. Rfc1 {[%clk 0:01:48.2]} 17... Qb6 {[%clk 0:02:31.4]} 18.
h3 {[%clk 0:01:43.7]} 18... Kf8 {[%clk 0:02:28.3]} 19. Qg5 {[%clk 0:01:35.8]}
19... Qd8 {[%clk 0:02:26.6]} 20. Qf6 {[%clk 0:01:31.6]} 20... Kg8 {[%clk
0:02:25.5]} 21. Ng5 {[%clk 0:01:26.5]} 21... Qe8 {[%clk 0:02:23.6]} 22. Ne3
{[%clk 0:01:19.3]} 22... Nxd4 {[%clk 0:02:12.8]} 23. Rxc8 {[%clk 0:01:18.7]}
23... Nxc8 {[%clk 0:02:11.5]} 24. Rc1 {[%clk 0:01:17.4]} 24... Nc6 {[%clk
0:02:11.1]} 25. b4 {[%clk 0:01:17.6]} 25... a6 {[%clk 0:01:52.6]} 26. a4 {[%clk
0:01:17.5]} 26... Nb6 {[%clk 0:01:45.7]} 27. b5 {[%clk 0:01:15.6]} 27... Nd7
{[%clk 0:01:43.3]} 28. Qxf7+ {[%clk 0:00:52.3]} 28... Qxf7 {[%clk 0:01:42]} 29.
Nxf7 {[%clk 0:00:53.2]} 29... Kxf7 {[%clk 0:01:39]} 30. bxc6 {[%clk 0:00:54.1]}
30... Rc8 {[%clk 0:01:36.4]} 31. Rb1 {[%clk 0:00:40.2]} 31... bxc6 {[%clk
0:01:30.1]} 32. Rb7 {[%clk 0:00:39.9]} 32... Ke8 {[%clk 0:01:30.6]} 33. f4
{[%clk 0:00:39.3]} 33... c5 {[%clk 0:01:30.2]} 34. g4 {[%clk 0:00:37.3]} 34...
c4 {[%clk 0:01:25.7]} 35. f5 {[%clk 0:00:35.9]} 35... Nxe5 {[%clk 0:01:16.6]}
36. fxe6 {[%clk 0:00:34.1]} 36... d4 {[%clk 0:01:15.7]} 37. Nd5 {[%clk
0:00:34.3]} 37... Nc6 {[%clk 0:00:56.8]} 38. Nf6+ {[%clk 0:00:33.6]} 38... Kd8
{[%clk 0:00:55.9]} 39. Rd7# {[%clk 0:00:33.9]} 1-0

[Event "Early-Titled-Tuesday-Blitz-September-05-2023"]
[Site "Chess.com"]
[Date "2023.09.05"]
[Round "1"]
[White "krstulov_alex"]
[Black "vedantgoswami"]
[Result "1-0"]
[WhiteElo "2624"]
[BlackElo "2301"]
[TimeControl "180+1"]
[EndTime "8:06:13 PDT"]
[Termination "krstulov_alex won by resignation"]

1. d4 {[%clk 0:02:59.2]} 1... Nf6 {[%clk 0:02:59.5]} 2. Nf3 {[%clk 0:02:58.3]}
2... e6 {[%clk 0:02:58.6]} 3. Bf4 {[%clk 0:02:58.6]} 3... d5 {[%clk 0:02:56.3]}
4. e3 {[%clk 0:02:59.1]} 4... Bd6 {[%clk 0:02:56.3]} 5. Bg3 {[%clk 0:02:59.1]}
5... c5 {[%clk 0:02:56.5]} 6. Nbd2 {[%clk 0:02:59.8]} 6... Qc7 {[%clk
0:02:56.6]} 7. dxc5 {[%clk 0:02:59.7]} 7... Qxc5 {[%clk 0:02:52]} 8. c4 {[%clk
0:03:00.1]} 8... Nc6 {[%clk 0:02:48.4]} 9. Rc1 {[%clk 0:03:00.2]} 9... Bxg3
{[%clk 0:02:47]} 10. hxg3 {[%clk 0:02:58.6]} 10... Bd7 {[%clk 0:02:40.9]} 11.
cxd5 {[%clk 0:02:57.5]} 11... Qxd5 {[%clk 0:02:39.4]} 12. Bc4 {[%clk 0:02:58.4]}
12... Qa5 {[%clk 0:02:31.4]} 13. a3 {[%clk 0:02:58]} 13... Rd8 {[%clk 0:02:26]}
14. Qc2 {[%clk 0:02:57.5]} 14... h6 {[%clk 0:02:19.4]} 15. Rh4 {[%clk
0:02:39.6]} 15... Ne5 {[%clk 0:02:17.6]} 16. Nxe5 {[%clk 0:02:34.6]} 16... Qxe5
{[%clk 0:02:17.2]} 17. Nf3 {[%clk 0:02:35.4]} 17... Qa5+ {[%clk 0:02:14.5]} 18.
Kf1 {[%clk 0:02:35.6]} 18... Bb5 {[%clk 0:02:06.1]} 19. Kg1 {[%clk 0:02:34.4]}
19... Bxc4 {[%clk 0:02:02.2]} 20. Rxc4 {[%clk 0:02:35.3]} 20... O-O {[%clk
0:02:01.4]} 21. g4 {[%clk 0:02:35]} 21... Rd5 {[%clk 0:01:51.2]} 22. e4 {[%clk
0:02:28.3]} 22... Rd7 {[%clk 0:01:43.1]} 23. g5 {[%clk 0:02:28.3]} 23... hxg5
{[%clk 0:01:41.2]} 24. e5 {[%clk 0:02:28.6]} 24... Nh7 {[%clk 0:01:32]} 25. g3
{[%clk 0:02:01.2]} 25... g4 {[%clk 0:01:26.7]} 26. Rxg4 {[%clk 0:02:00.4]} 26...
Rfd8 {[%clk 0:01:21.5]} 27. Kg2 {[%clk 0:01:59.3]} 27... g6 {[%clk 0:00:59]} 28.
Rh1 {[%clk 0:01:58.1]} 28... Kg7 {[%clk 0:00:56.6]} 29. Qc1 {[%clk 0:01:38.5]}
29... Rh8 {[%clk 0:00:40.3]} 30. Qh6+ {[%clk 0:01:32.2]} 30... Kg8 {[%clk
0:00:38.4]} 31. Qh3 {[%clk 0:01:01.8]} 31... Qd5 {[%clk 0:00:36.9]} 32. Rh4
{[%clk 0:01:01.6]} 32... f5 {[%clk 0:00:32.7]} 33. exf6 {[%clk 0:01:00.1]} 33...
g5 {[%clk 0:00:28.9]} 34. Rh5 {[%clk 0:00:54]} 34... Rf7 {[%clk 0:00:26.1]} 35.
Rxg5+ {[%clk 0:00:54.2]} 1-0

[Event "Early-Titled-Tuesday-Blitz-September-05-2023"]
[Site "Chess.com"]
[Date "2023.09.05"]
[Round "1"]
[White "GeorgiosSouleidis"]
[Black "Hikaru"]
[Result "0-1"]
[WhiteElo "2551"]
[BlackElo "3269"]
[TimeControl "180+1"]
[EndTime "8:06:14 PDT"]
[Termination "Hikaru won on time"]

1. e4 {[%clk 0:03:00.9]} 1... a6 {[%clk 0:02:55]} 2. d4 {[%clk 0:03:00.2]} 2...
e6 {[%clk 0:02:54]} 3. Nf3 {[%clk 0:02:59]} 3... d5 {[%clk 0:02:54.3]} 4. Nc3
{[%clk 0:02:53.8]} 4... Nf6 {[%clk 0:02:45.3]} 5. Bd3 {[%clk 0:02:39.7]} 5... c5
{[%clk 0:02:38.7]} 6. exd5 {[%clk 0:02:35.5]} 6... cxd4 {[%clk 0:02:38.6]} 7.
Nxd4 {[%clk 0:02:29.8]} 7... Nxd5 {[%clk 0:02:38.4]} 8. Nxd5 {[%clk 0:02:25.2]}
8... Qxd5 {[%clk 0:02:39.3]} 9. O-O {[%clk 0:02:20.9]} 9... Bd7 {[%clk
0:02:38.1]} 10. c3 {[%clk 0:02:18.6]} 10... Nc6 {[%clk 0:02:38.2]} 11. Be3
{[%clk 0:02:12.9]} 11... Nxd4 {[%clk 0:02:32.1]} 12. Bxd4 {[%clk 0:02:12.7]}
12... Bc6 {[%clk 0:02:32.3]} 13. f3 {[%clk 0:02:04.6]} 13... O-O-O {[%clk
0:02:22.1]} 14. Be4 {[%clk 0:01:54.6]} 14... Qd7 {[%clk 0:02:00]} 15. Bxc6
{[%clk 0:01:54.6]} 15... Qxc6 {[%clk 0:02:00.2]} 16. Qe2 {[%clk 0:01:53]} 16...
f6 {[%clk 0:02:00.4]} 17. Rfd1 {[%clk 0:01:47.7]} 17... e5 {[%clk 0:01:59.5]}
18. Bf2 {[%clk 0:01:47.7]} 18... Be7 {[%clk 0:01:55.4]} 19. Rxd8+ {[%clk
0:01:45.5]} 19... Bxd8 {[%clk 0:01:55.5]} 20. Rd1 {[%clk 0:01:46.2]} 20... Bc7
{[%clk 0:01:55.9]} 21. c4 {[%clk 0:01:42.9]} 21... f5 {[%clk 0:01:55.1]} 22. b4
{[%clk 0:01:40.4]} 22... e4 {[%clk 0:01:51.2]} 23. fxe4 {[%clk 0:01:40.4]} 23...
Re8 {[%clk 0:01:50.1]} 24. b5 {[%clk 0:01:39.7]} 24... Qxe4 {[%clk 0:01:48.6]}
25. Qh5 {[%clk 0:01:10.1]} 25... Rd8 {[%clk 0:01:28.6]} 26. bxa6 {[%clk
0:00:55.5]} 26... Rxd1+ {[%clk 0:01:19.8]} 27. Qxd1 {[%clk 0:00:55.5]} 27...
bxa6 {[%clk 0:01:20.5]} 28. c5 {[%clk 0:00:18.7]} 28... g5 {[%clk 0:01:14.4]}
29. Qb3 {[%clk 0:00:11]} 29... f4 {[%clk 0:01:04.4]} 30. Qg8+ {[%clk 0:00:08.6]}
30... Kb7 {[%clk 0:01:04.5]} 31. Qb3+ {[%clk 0:00:08.5]} 31... Kc6 {[%clk
0:01:04.8]} 32. h3 {[%clk 0:00:06.6]} 32... h5 {[%clk 0:01:02.8]} 0-1